lending/lending_fUSD_20260306
["ID","MTS","AMOUNT","RATE_DAILY","PERIOD"]
[407773506,1772788240125,-500.0,0.00015885,2]
[407773507,1772788240136,-200.0,0.00015885,2]
[407773508,1772788240151,-500.0,0.00015885,2]
[407773510,1772788240161,-500.0,0.00015885,2]
[407773512,1772788240170,-500.0,0.00015885,2]
[407773513,1772788240182,-500.0,0.00015885,2]
[407773514,1772788240203,-500.0,0.00015885,2]
[407773515,1772788240215,-500.0,0.00015885,2]
[407773516,1772788240225,-500.0,0.00015885,2]
[407773517,1772788240236,-151.0,0.00015885,2]
[407773518,1772788240245,-500.0,0.00015885,2]
[407773519,1772788240255,-255.39371409,0.00015885,2]
[407773520,1772788240265,-151.0,0.00015885,2]
[407773521,1772788240275,-151.0,0.00015885,2]
[407773522,1772788240284,-151.0,0.00015885,2]
[407773523,1772788240294,-151.0,0.00015885,2]
[407773524,1772788240303,-151.0,0.00015885,2]
[407773525,1772788240313,-151.0,0.00015885,2]
[407773526,1772788240322,-151.0,0.00015885,2]
[407773527,1772788240332,-151.0,0.00015885,2]
[407773528,1772788240341,-151.0,0.00015885,2]
[407773529,1772788240351,-151.0,0.00015885,2]
[407773530,1772788240361,-151.0,0.00015885,2]
[407773531,1772788240371,-151.0,0.00015885,2]
[407773532,1772788240381,-151.0,0.00015885,2]
[407773533,1772788240391,-151.0,0.00015885,2]
[407773534,1772788240400,-151.0,0.00015885,2]
[407773535,1772788240409,-151.0,0.00015885,2]
[407773536,1772788240420,-151.0,0.00015885,2]
[407773537,1772788240429,-151.0,0.00015885,2]
[407773538,1772788240439,-151.0,0.00015885,2]
[407773539,1772788240448,-151.0,0.00015885,2]
[407773540,1772788240458,-2500.0,0.0001589,2]
[407773541,1772788240467,-778.57186039,0.0001589,2]
[407773542,1772788240477,-1001.21552028,0.00015892,2]
[407773543,1772788240486,-1000.0,0.00015892,2]
[407773544,1772788240495,-151.0,0.00015892,2]
[407773545,1772788240504,-590.91477512,0.00015893,2]
[407773546,1772788240513,-151.0,0.00015893,2]
[407773547,1772788240522,-151.91793441,0.00015893,2]
[407773548,1772788240532,-500.0,0.00015894,2]
[407773549,1772788240541,-298.41055689,0.00015894,2]
[407773550,1772788240550,-500.0,0.00015894,2]
[407773551,1772788240559,-500.0,0.00015894,2]
[407773552,1772788240568,-1127.0,0.00015894,2]
[407773553,1772788240577,-500.0,0.00015894,2]
[407773554,1772788240586,-500.0,0.00015894,2]
[407773555,1772788240596,-691.0,0.00015894,2]
[407773556,1772788240607,-500.0,0.00015894,2]
[407773557,1772788240617,-500.0,0.00015894,2]
[407773558,1772788240626,-500.0,0.00015894,2]
[407773559,1772788240636,-283.81037588,0.00015894,2]
[407773560,1772788240646,-500.0,0.00015894,2]
[407773561,1772788240655,-500.0,0.00015894,2]
[407773562,1772788240664,-588.4343989,0.00015894,2]
[407773563,1772788240674,-4665.967,0.00015894,2]
[407773564,1772788240683,-273.632,0.00015894,2]
[407773565,1772788240693,-500.0,0.00015894,2]
[407773566,1772788240702,-306.66567775,0.00015894,2]
[407773567,1772788240711,-23953.63956096,0.00015894,2]
[407773568,1772788240720,-500.0,0.00015894,2]
[407773569,1772788240729,-500.0,0.00015894,2]
[407773570,1772788240738,-500.0,0.00015894,2]
[407773571,1772788240747,-500.0,0.00015894,2]
[407773572,1772788240757,-500.0,0.00015894,2]
[407773573,1772788240766,-500.0,0.00015894,2]
[407773574,1772788240775,-500.0,0.00015894,2]
[407773575,1772788240785,-500.0,0.00015894,2]
[407773576,1772788240794,-500.0,0.00015894,2]
[407773577,1772788240803,-500.0,0.00015894,2]
[407773578,1772788240812,-515.53321207,0.00015894,2]
[407773579,1772788240821,-230.98606825,0.00015894,2]
[407773580,1772788240830,-500.0,0.00015895,2]
[407773581,1772788240839,-505.11162993,0.00015895,2]
[407773582,1772788240851,-500.0,0.00015895,2]
[407773583,1772788240860,-206.68713067,0.00015895,2]
[407773584,1772788240870,-500.0,0.00015895,2]
[407773585,1772788240879,-1077.0,0.00015895,2]
[407773586,1772788240888,-500.0,0.00015895,2]
[407773587,1772788240899,-489.0,0.00015895,2]
[407773588,1772788240908,-500.0,0.00015895,2]
[407773589,1772788240917,-500.0,0.00015895,2]
[407773590,1772788240927,-150.0,0.00015895,2]
[407773591,1772788240936,-470.0,0.00015895,2]
[407773592,1772788240946,-500.0,0.00015895,2]
[407773593,1772788241217,-1414.0,0.00015895,2]
[407773594,1772788241257,-842.0,0.00015895,2]
[407773595,1772788241266,-500.0,0.000159,4]
[407773596,1772788241275,-600.0,0.000159,3]
[407773597,1772788241285,-700.0,0.000159,4]
[407773598,1772788241294,-200.72181509,0.000159,2]
[407773599,1772788241304,-150.0,0.000159,2]
[407773600,1772788241315,-521.12574049,0.000159,3]
[407773601,1772788241324,-200.0,0.00015906,2]
[407773602,1772788241335,-172.74325605,0.00016,3]
[407773603,1772788241346,-1821.57,0.00016041,2]
[407773604,1772788241356,-182.80013699,0.0001611,2]
[407773605,1772788241366,-4055.2969651,0.00016125,2]
[407773606,1772788241375,-500.0,0.00016141,2]
[407773607,1772788241384,-500.0,0.00016159,2]
[407773608,1772788241394,-500.0,0.00016159,2]
[407773609,1772788241403,-500.0,0.00016168,2]
[407773610,1772788241411,-500.0,0.00016168,2]
[407773611,1772788241421,-1127.0,0.00016168,2]
[407773612,1772788241430,-500.0,0.00016168,2]
[407773613,1772788241439,-158.23107079,0.00016168,2]
[407773614,1772788241448,-691.0,0.00016168,2]
[407773615,1772788241457,-500.0,0.00016168,2]
[407773616,1772788241467,-500.0,0.00016169,2]
[407773617,1772788241479,-500.0,0.00016169,2]
[407773618,1772788241487,-500.0,0.00016169,2]
[407773619,1772788241497,-1077.0,0.00016169,2]
[407773620,1772788241506,-500.0,0.00016169,2]
[407773621,1772788241515,-489.0,0.00016169,2]
[407773622,1772788241525,-500.0,0.00016169,2]
[407773623,1772788241535,-500.0,0.00016169,2]
[407773624,1772788241544,-150.0,0.00016169,2]
[407773625,1772788241553,-470.0,0.00016169,2]
[407773626,1772788241565,-500.0,0.00016169,2]
[407773627,1772788241575,-1414.0,0.00016169,2]
[407773628,1772788241585,-842.0,0.00016169,2]
[407773629,1772788241594,-2000.0,0.000162,2]
[407773630,1772788241603,-1131.58264798,0.000162,5]
[407773631,1772788241613,-3500.0,0.00016288,2]
[407773632,1772788241622,-2000.0,0.000163,2]
[407773633,1772788241632,-1000.0,0.00016334,7]
[407773634,1772788241641,-200.0,0.0001634,2]
[407773635,1772788241651,-159.0,0.00016341,3]
[407773636,1772788241660,-1153.53428303,0.00016385,2]
[407773637,1772788241669,-2578.57330251,0.00016385,2]
[407773638,1772788241679,-2862.20125584,0.00016385,2]
[407773639,1772788241688,-2858.59519375,0.00016385,2]
[407773640,1772788241697,-3138.61708508,0.00016385,2]
[407773641,1772788241706,-500.0,0.00016392,2]
[407773642,1772788241715,-2000.0,0.000164,2]
[407773643,1772788241725,-500.0,0.00016415,2]
[407773644,1772788241734,-902.37041004,0.00016421,2]
[407773645,1772788241743,-308.33409821,0.00016421,2]
[407773646,1772788241752,-316.44451037,0.00016421,2]
[407773647,1772788241761,-1000.0,0.00016421,2]
[407773648,1772788241771,-1000.0,0.00016421,2]
[407773649,1772788241783,-1000.0,0.00016421,2]
[407773650,1772788241798,-1000.0,0.00016421,2]
[407773651,1772788241809,-159.97622089,0.00016433,2]
[407773652,1772788241818,-500.0,0.00016433,2]
[407773653,1772788241828,-200.0,0.00016433,2]
[407773654,1772788241837,-2710.0,0.00016438,2]
[407773655,1772788241847,-500.0,0.00016438,2]
[407773656,1772788241858,-29547.53,0.00016438,2]
[407773657,1772788241868,-500.0,0.00016438,2]
[407773658,1772788241878,-228.32,0.00016438,2]
[407773659,1772788241887,-3000.0,0.00016438,2]
[407773660,1772788241897,-500.0,0.00016442,2]
[407773661,1772788241907,-500.0,0.00016442,2]
[407773662,1772788241917,-1127.0,0.00016442,2]
[407773663,1772788241926,-283.44434568,0.00016442,2]
[407773664,1772788241935,-691.0,0.00016442,2]
[407773665,1772788241945,-500.0,0.00016442,2]
[407773666,1772788241955,-500.0,0.00016443,2]
[407773667,1772788241965,-500.0,0.00016443,2]
[407773668,1772788241975,-354.79390424,0.00016443,2]
[407773669,1772788241985,-1077.0,0.00016443,2]
[407773670,1772788241995,-500.0,0.00016443,2]
[407773671,1772788242005,-489.0,0.00016443,2]
[407773672,1772788242016,-500.0,0.00016443,2]
[407773673,1772788242026,-500.0,0.00016443,2]
[407773674,1772788242037,-177.84937851,0.00016443,2]
[407773675,1772788242048,-470.0,0.00016443,2]
[407773676,1772788242058,-500.0,0.00016443,2]
[407773677,1772788242068,-1414.0,0.00016443,2]
[407773678,1772788242077,-842.0,0.00016443,2]
[407773679,1772788242088,-200.0,0.0001649,2]
[407773680,1772788242097,-1821.57,0.000165,2]
[407773681,1772788242114,-500.0,0.000165,4]
[407773682,1772788242124,-1000.0,0.000165,5]
[407773683,1772788242134,-600.0,0.000165,4]
[407773684,1772788242146,-2000.0,0.000165,2]
[407773685,1772788242156,-2000.0,0.000166,2]
[407773686,1772788242165,-2000.0,0.000166,2]
[407773687,1772788242176,-1442.3391244,0.0001668,2]
[407773688,1772788242185,-2504.8231,0.00016689,2]
[407773689,1772788242195,-500.0,0.00016689,2]
[407773690,1772788242205,-2000.0,0.000167,2]
[407773691,1772788242215,-2000.0,0.000167,2]
[407773692,1772788242224,-500.0,0.00016707,2]
[407773693,1772788242233,-2710.0,0.00016712,2]
[407773694,1772788242243,-500.0,0.00016712,2]
[407773696,1772788242253,-166.34,0.00016712,2]
[407773698,1772788242263,-500.0,0.00016716,2]
[407773700,1772788242272,-500.0,0.00016716,2]
[407773701,1772788242282,-1127.0,0.00016716,2]
[407773702,1772788242292,-691.0,0.00016716,2]
[407773703,1772788242302,-500.0,0.00016716,2]
[407773704,1772788242312,-500.0,0.00016717,2]
[407773705,1772788242323,-500.0,0.00016717,2]
[407773706,1772788242333,-1077.0,0.00016717,2]
[407773707,1772788242343,-500.0,0.00016717,2]
[407773708,1772788242356,-489.0,0.00016717,2]
[407773709,1772788242366,-500.0,0.00016717,2]
[407773710,1772788242376,-500.0,0.00016717,2]
[407773711,1772788242386,-470.0,0.00016717,2]
[407773712,1772788242396,-500.0,0.00016717,2]
[407773713,1772788242405,-1414.0,0.00016717,2]
[407773714,1772788242415,-842.0,0.00016717,2]
[407773715,1772788242425,-156.62,0.0001679,2]
[407773716,1772788242434,-2000.0,0.000168,2]
[407773717,1772788242440,-2000.0,0.000168,2]
[407773718,1772788242448,-9035.0,0.00016826,2]
[407773719,1772788242455,-4000.0,0.00016836,2]
[407773720,1772788242462,-316.24495395,0.00016853,2]
[407773721,1772788242469,-2000.0,0.000169,2]
[407773722,1772788242476,-2000.0,0.000169,2]
[407773723,1772788242484,-2000.0,0.000169,2]
[407773725,1772788242492,-1000.0,0.0001694,2]
[407773727,1772788242500,-262.84,0.00016942,2]
[407773729,1772788242507,-1821.57,0.00016958,2]
[407773731,1772788242515,-500.0,0.00016963,2]
[407773732,1772788242522,-1500.0,0.00016968,2]
[407773734,1772788242529,-1500.0,0.00016968,2]
[407773736,1772788242536,-1500.0,0.00016968,2]
[407773738,1772788242543,-1500.0,0.00016968,2]
[407773740,1772788242551,-500.0,0.00016973,2]
[407773741,1772788242558,-500.0,0.00016973,2]
[407773742,1772788242565,-500.0,0.00016981,2]
[407773743,1772788242572,-200.0,0.00016981,2]
[407773744,1772788242579,-2710.0,0.00016986,2]
[407773745,1772788242587,-500.0,0.00016986,2]
[407773746,1772788242596,-2027.87464689,0.00016986,2]
[407773747,1772788242609,-500.0,0.0001699,2]
[407773748,1772788242619,-500.0,0.0001699,2]
[407773749,1772788242629,-1127.0,0.0001699,2]
[407773750,1772788242639,-691.0,0.0001699,2]
[407773751,1772788242648,-500.0,0.0001699,2]
[407773752,1772788242658,-500.0,0.00016991,2]
[407773753,1772788242668,-500.0,0.00016991,2]
[407773754,1772788242677,-1077.0,0.00016991,2]
[407773755,1772788242687,-500.0,0.00016991,2]
[407773756,1772788242696,-489.0,0.00016991,2]
[407773757,1772788242706,-346.11999949,0.00016991,2]
[407773758,1772788242715,-500.0,0.00016991,2]
[407773759,1772788242724,-470.0,0.00016991,2]
[407773760,1772788242736,-500.0,0.00016991,2]
[407773761,1772788242745,-1414.0,0.00016991,2]
[407773762,1772788242755,-842.0,0.00016991,2]
[407773763,1772788242765,-1048.80405627,0.00016999,5]
[407773764,1772788242775,-210937.72845545,0.00017,2]
[407773765,1772788242785,-300.0,0.00017,2]
[407773766,1772788242795,-152.09858182,0.00017,2]
[407773767,1772788242805,-156.62,0.0001706,2]
[407773768,1772788242814,-2437.09,0.00017095,2]
[407773769,1772788242823,-19882.69676082,0.0001711,2]
[407773770,1772788242833,-1000.0,0.00017156,2]
[407773771,1772788242843,-500.0,0.00017237,2]
[407773772,1772788242853,-500.0,0.00017255,2]
[407773773,1772788242863,-2710.0,0.0001726,2]
[407773774,1772788242872,-500.0,0.0001726,2]
[407773775,1772788242882,-500.0,0.00017264,2]
[407773776,1772788242892,-500.0,0.00017264,2]
[407773777,1772788242902,-1127.0,0.00017264,2]
[407773778,1772788242911,-691.0,0.00017264,2]
[407773779,1772788242921,-500.0,0.00017264,2]
[407773780,1772788242930,-500.0,0.00017265,2]
[407773781,1772788242940,-500.0,0.00017265,2]
[407773783,1772788242950,-1077.0,0.00017265,2]
[407773785,1772788242959,-500.0,0.00017265,2]
[407773787,1772788242969,-489.0,0.00017265,2]
[407773788,1772788242978,-500.0,0.00017265,2]
[407773789,1772788242988,-470.0,0.00017265,2]
[407773790,1772788242997,-500.0,0.00017265,2]
[407773791,1772788243006,-1414.0,0.00017265,2]
[407773792,1772788243016,-842.0,0.00017265,2]
[407773793,1772788243025,-506.0,0.000173,4]
[407773794,1772788243035,-156.62,0.0001733,2]
[407773795,1772788243044,-4500.0,0.00017384,2]
[407773797,1772788243054,-1821.57,0.00017416,2]
[407773798,1772788243063,-1500.0,0.00017488,2]
[407773799,1772788243073,-3388.83143379,0.00017505,2]
[407773800,1772788243082,-1000.0,0.00017505,2]
[407773801,1772788243092,-219.73015263,0.00017505,2]
[407773802,1772788243106,-721.12765535,0.00017505,2]
[407773803,1772788243115,-250.0,0.00017505,2]
[407773804,1772788243125,-250.0,0.00017505,2]
[407773805,1772788243138,-500.0,0.00017505,2]
[407773806,1772788243148,-250.0,0.00017505,2]
[407773807,1772788243158,-500.0,0.00017505,2]
[407773808,1772788243168,-250.0,0.00017505,2]
[407773809,1772788243179,-250.0,0.00017505,2]
[407773810,1772788243189,-500.0,0.00017505,2]
[407773812,1772788243199,-250.0,0.00017505,2]
[407773814,1772788243211,-500.0,0.00017505,2]
[407773815,1772788243221,-250.0,0.00017505,2]
[407773816,1772788243231,-500.0,0.00017505,2]
[407773817,1772788243241,-250.0,0.00017505,2]
[407773818,1772788243252,-250.0,0.00017505,2]
[407773819,1772788243262,-500.0,0.00017505,2]
[407773820,1772788243273,-250.0,0.00017505,2]
[407773821,1772788243283,-500.0,0.00017505,2]
[407773822,1772788243292,-250.0,0.00017505,2]
[407773823,1772788243308,-500.0,0.00017505,2]
[407773824,1772788243318,-250.0,0.00017505,2]
[407773825,1772788243328,-500.0,0.00017505,2]
[407773826,1772788243338,-1000.0,0.00017505,2]
[407773827,1772788243347,-500.0,0.00017505,2]
[407773828,1772788243358,-1000.0,0.00017505,2]
[407773829,1772788243369,-500.0,0.00017505,2]
[407773830,1772788243379,-1000.0,0.00017505,2]
[407773831,1772788243389,-1000.0,0.00017505,2]
[407773832,1772788243399,-1000.0,0.00017505,2]
[407773833,1772788243409,-1000.0,0.00017505,2]
[407773834,1772788243419,-300.0,0.00017505,2]
[407773835,1772788243429,-1000.0,0.00017505,2]
[407773836,1772788243439,-300.0,0.00017505,2]
[407773837,1772788243449,-1000.0,0.00017505,2]
[407773838,1772788243458,-305.95163096,0.00017505,2]
[407773839,1772788243468,-1000.0,0.00017505,2]
[407773840,1772788243478,-1000.0,0.00017505,2]
[407773841,1772788243488,-578.20924308,0.00017505,2]
[407773842,1772788243498,-271.67882507,0.00017505,2]
[407773843,1772788243512,-1000.0,0.00017505,2]
[407773844,1772788243523,-693.3919763,0.00017505,2]
[407773845,1772788243534,-151.0,0.00017505,2]
[407773846,1772788243545,-151.0,0.00017505,2]
[407773847,1772788243555,-151.0,0.00017505,2]
[407773848,1772788243565,-151.0,0.00017505,2]
[407773849,1772788243575,-151.0,0.00017505,2]
[407773850,1772788243586,-151.0,0.00017505,2]
[407773851,1772788243764,-151.0,0.00017505,2]
[407773852,1772788243774,-151.0,0.00017505,2]
[407773853,1772788243784,-151.0,0.00017505,2]
[407773854,1772788243794,-174.61919141,0.00017505,2]
[407773855,1772788243804,-262.90206542,0.00017505,2]
[407773856,1772788243814,-500.0,0.00017505,2]
[407773857,1772788243823,-500.0,0.00017505,2]
[407773858,1772788243832,-500.0,0.00017505,2]
[407773859,1772788243844,-250.0,0.00017505,2]
[407773860,1772788243855,-500.0,0.00017505,2]
[407773861,1772788243865,-250.0,0.00017505,2]
[407773862,1772788243874,-500.0,0.00017505,2]
[407773863,1772788243884,-250.0,0.00017505,2]
[407773864,1772788243893,-250.0,0.00017505,2]
[407773865,1772788243903,-508.72212285,0.00017505,2]
[407773866,1772788243912,-250.0,0.00017505,2]
[407773867,1772788243922,-250.0,0.00017505,2]
[407773868,1772788243932,-250.0,0.00017505,2]
[407773869,1772788243941,-503.01170887,0.00017505,2]
[407773870,1772788243951,-743.50770149,0.00017505,2]
[407773871,1772788243960,-209.40437685,0.00017505,2]
[407773872,1772788243970,-500.0,0.00017505,2]
[407773873,1772788243979,-500.0,0.00017505,2]
[407773874,1772788243988,-500.0,0.00017505,2]
[407773875,1772788243997,-500.0,0.00017505,2]
[407773876,1772788244007,-500.0,0.00017505,2]
[407773877,1772788244016,-500.0,0.00017505,2]
[407773878,1772788244026,-500.0,0.00017505,2]
[407773879,1772788244035,-698.27174692,0.00017505,2]
[407773880,1772788244044,-500.0,0.00017505,2]
[407773881,1772788244053,-500.0,0.00017505,2]
[407773882,1772788244063,-500.0,0.00017505,2]
[407773883,1772788244072,-500.0,0.00017505,2]
[407773884,1772788244081,-269.917619,0.00017505,2]
[407773885,1772788244090,-12476.65,0.0001751,7]
[407773886,1772788244099,-1247.67,0.0001751,7]
[407773887,1772788244110,-172.74325605,0.0001751,7]
[407773888,1772788244119,-500.0,0.00017511,2]
[407773889,1772788244128,-2000.0,0.00017516,2]
[407773890,1772788244139,-2000.0,0.00017516,2]
[407773891,1772788244149,-785.42431869,0.00017516,2]
[407773892,1772788244158,-2000.0,0.00017516,2]
[407773893,1772788244167,-793.77158202,0.00017521,2]
[407773894,1772788244176,-1000.0,0.00017521,2]
[407773895,1772788244186,-500.0,0.00017529,2]
[407773896,1772788244195,-200.0,0.00017529,2]
[407773897,1772788244205,-2710.0,0.00017534,2]
[407773898,1772788244216,-500.0,0.00017534,2]
[407773899,1772788244226,-500.0,0.00017538,2]
[407773900,1772788244245,-500.0,0.00017538,2]
[407773901,1772788244255,-1127.0,0.00017538,2]
[407773902,1772788244265,-691.0,0.00017538,2]
[407773903,1772788244275,-500.0,0.00017538,2]
[407773904,1772788244284,-500.0,0.00017539,2]
[407773905,1772788244295,-508.00677456,0.00017539,2]
[407773906,1772788244304,-1077.0,0.00017539,2]
[407773907,1772788244313,-500.0,0.00017539,2]
[407773908,1772788244323,-489.0,0.00017539,2]
[407773909,1772788244333,-500.0,0.00017539,2]
[407773910,1772788244342,-470.0,0.00017539,2]
[407773911,1772788244352,-500.0,0.00017539,2]
[407773912,1772788244361,-1414.0,0.00017539,2]
[407773913,1772788244371,-842.0,0.00017539,2]
[407773914,1772788244381,-719.04747942,0.0001756,2]
[407773915,1772788244391,-156.62,0.000176,2]
[407773916,1772788244401,-745.65223616,0.00017615,2]
[407773917,1772788244411,-153.327391,0.00017645,2]
[407773918,1772788244420,-500.0,0.00017645,2]
[407773919,1772788244429,-154.84165801,0.00017645,2]
[407773920,1772788244439,-500.0,0.00017645,2]
[407773921,1772788244448,-420.0,0.00017645,2]
[407773922,1772788244458,-214.68428333,0.00017645,2]
[407773923,1772788244467,-500.0,0.00017645,2]
[407773924,1772788244477,-500.0,0.00017645,2]
[407773925,1772788244486,-150.0,0.00017645,2]
[407773926,1772788244496,-500.0,0.00017645,2]
[407773927,1772788244505,-773.2413689,0.0001767,2]
[407773928,1772788244515,-500.0,0.00017671,2]
[407773929,1772788244524,-876.76,0.0001768,2]
[407773930,1772788244534,-801.85129955,0.00017725,2]
[407773931,1772788244543,-831.51979763,0.0001778,2]
[407773932,1772788244553,-500.0,0.00017785,2]
[407773933,1772788244563,-500.0,0.00017803,2]
[407773934,1772788244573,-2710.0,0.00017808,2]
[407773935,1772788244583,-500.0,0.00017808,2]
[407773936,1772788244593,-500.0,0.00017812,2]
[407773937,1772788244603,-500.0,0.00017812,2]
[407773938,1772788244614,-1127.0,0.00017812,2]
[407773939,1772788244624,-691.0,0.00017812,2]
[407773940,1772788244634,-500.0,0.00017812,2]
[407773941,1772788244643,-500.0,0.00017813,2]
[407773942,1772788244653,-1077.0,0.00017813,2]
[407773943,1772788244662,-500.0,0.00017813,2]
[407773944,1772788244672,-489.0,0.00017813,2]
[407773945,1772788244682,-500.0,0.00017813,2]
[407773946,1772788244691,-470.0,0.00017813,2]
[407773947,1772788244701,-500.0,0.00017813,2]
[407773948,1772788244710,-1414.0,0.00017813,2]
[407773949,1772788244720,-842.0,0.00017813,2]
[407773950,1772788244730,-862.28603014,0.00017835,2]
[407773951,1772788244740,-150.10507288,0.00017843,2]
[407773952,1772788244749,-156.62,0.0001787,2]
[407773953,1772788244759,-894.19061326,0.0001789,2]
[407773954,1772788244769,-162.0,0.000179,2]
[407773955,1772788244778,-780.83,0.000179,2]
[407773956,1772788244792,-500.0,0.00017919,2]
[407773957,1772788244801,-500.0,0.00017919,2]
[407773958,1772788244811,-420.0,0.00017919,2]
[407773959,1772788244820,-500.0,0.00017919,2]
[407773960,1772788244829,-500.0,0.00017919,2]
[407773961,1772788244839,-500.0,0.00017919,2]
[407773962,1772788244848,-150.0,0.00017919,2]
[407773963,1772788244858,-5000.0,0.00017932,2]
[407773964,1772788244869,-927.27566595,0.00017945,2]
[407773965,1772788244879,-351.25248798,0.00017945,2]
[407773966,1772788244889,-876.76,0.00017954,2]
[407773967,1772788244898,-262.84,0.00017991,2]
[407773968,1772788244908,-961.58486559,0.00018,2]
[407773969,1772788244918,-578.0,0.00018,2]
[407773970,1772788244927,-150.0,0.00018,2]
[407773971,1772788244936,-150.0,0.00018,2]
[407773972,1772788244946,-150.0,0.00018,2]
[407773973,1772788244955,-176.0,0.00018,2]
[407773974,1772788244965,-200.0,0.00018,2]
[407773975,1772788244974,-500.0,0.00018008,2]
[407773976,1772788244983,-500.0,0.00018008,2]
[407773977,1772788244992,-9357.48,0.00018035,7]
[407773978,1772788245002,-935.75,0.00018035,7]
[407773979,1772788245011,-2000.0,0.00018036,2]
[407773980,1772788245020,-1000.0,0.00018053,2]
[407773981,1772788245030,-181.08010149,0.00018053,2]
[407773982,1772788245039,-272.62944185,0.00018053,2]
[407773983,1772788245050,-997.16350561,0.00018055,2]
[407773984,1772788245060,-500.0,0.00018059,2]
[407773985,1772788245069,-2500.0,0.00018064,2]
[407773986,1772788245078,-1649.86978781,0.00018064,2]
[407773987,1772788245087,-2500.0,0.00018064,2]
[407773988,1772788245096,-1500.0,0.00018068,2]
[407773989,1772788245106,-307.72431395,0.00018077,2]
[407773990,1772788245115,-200.0,0.00018077,2]
[407773991,1772788245125,-2710.0,0.00018082,2]
[407773992,1772788245140,-179.22864957,0.00018082,2]
[407773993,1772788245149,-500.0,0.00018086,2]
[407773994,1772788245159,-500.0,0.00018086,2]
[407773995,1772788245173,-1127.0,0.00018086,2]
[407773996,1772788245183,-691.0,0.00018086,2]
[407773997,1772788245193,-500.0,0.00018086,2]
[407773998,1772788245205,-500.0,0.00018087,2]
[407773999,1772788245214,-1077.0,0.00018087,2]
[407774000,1772788245224,-500.0,0.00018087,2]
[407774001,1772788245233,-489.0,0.00018087,2]
[407774002,1772788245242,-470.0,0.00018087,2]
[407774003,1772788245252,-500.0,0.00018087,2]
[407774005,1772788245262,-1414.0,0.00018087,2]
[407774006,1772788245271,-842.0,0.00018087,2]
[407774007,1772788245281,-156.62,0.0001814,2]
[407774008,1772788245290,-1000.0,0.00018167,7]
[407774009,1772788245300,-780.83,0.00018174,2]
[407774011,1772788245309,-500.0,0.00018193,2]
[407774012,1772788245319,-500.0,0.00018193,2]
[407774014,1772788245329,-420.0,0.00018193,2]
[407774017,1772788245338,-500.0,0.00018193,2]
[407774019,1772788245348,-500.0,0.00018193,2]
[407774020,1772788245358,-150.0,0.00018193,2]
[407774021,1772788245372,-500.0,0.00018193,2]
[407774022,1772788245382,-876.76,0.00018228,2]
[407774023,1772788245392,-500.0,0.00018333,2]
[407774024,1772788245402,-2710.0,0.00018356,2]
[407774025,1772788245411,-500.0,0.0001836,2]
[407774026,1772788245421,-1127.0,0.0001836,2]
[407774027,1772788245431,-691.0,0.0001836,2]
[407774028,1772788245440,-400.0,0.0001836,2]
[407774029,1772788245450,-500.0,0.00018361,2]
[407774030,1772788245460,-1077.0,0.00018361,2]